fUSD/lending_fUSD_20251206
["ID","MTS","AMOUNT","RATE_DAILY","PERIOD"]
[396542842,1765044646813,-2516.02,0.00016438,2]
[396542843,1765044646823,-2266.31,0.00016438,2]
[396542844,1765044646833,-722.38,0.00016438,2]
[396542845,1765044646843,-151.0,0.00016438,2]
[396542846,1765044646853,-150.0,0.00016438,2]
[396542847,1765044646862,-500.0,0.00016438,2]
[396542848,1765044646872,-2920.42,0.00016438,2]
[396542849,1765044646882,-151.0,0.00016438,2]
[396542850,1765044646891,-500.0,0.00016438,2]
[396542851,1765044646901,-171.141905,0.00016438,2]
[396542852,1765044646910,-502.55622645,0.00016438,2]
[396542853,1765044646920,-2249.86,0.00016438,2]
[396542854,1765044646929,-500.0,0.00016438,2]
[396542855,1765044646939,-500.0,0.00016438,2]
[396542856,1765044646949,-2460.11,0.00016438,2]
[396542857,1765044646959,-3014.08,0.00016438,2]
[396542858,1765044646970,-2832.38,0.00016438,2]
[396542859,1765044646979,-500.0,0.00016438,2]
[396542860,1765044646989,-151.0,0.00016438,2]
[396542861,1765044646999,-500.0,0.00016438,2]
[396542862,1765044647008,-500.0,0.00016438,2]
[396542863,1765044647018,-589.77,0.00016438,2]
[396542864,1765044647027,-2854.53,0.00016438,2]
[396542865,1765044647036,-1527.43,0.00016438,2]
[396542866,1765044647046,-500.0,0.00016438,2]
[396542867,1765044647056,-500.0,0.00016438,2]
[396542868,1765044647065,-500.0,0.00016438,2]
[396542869,1765044647074,-500.0,0.00016438,2]
[396542870,1765044647083,-500.0,0.00016438,2]
[396542871,1765044647093,-500.0,0.00016438,2]
[396542872,1765044647102,-500.0,0.00016438,2]
[396542873,1765044647111,-842.95,0.00016438,2]
[396542874,1765044647121,-500.0,0.00016438,2]
[396542875,1765044647130,-534.99147111,0.00016438,2]
[396542876,1765044647150,-500.0,0.00016438,2]
[396542877,1765044647160,-503.26039617,0.00016438,2]
[396542878,1765044647169,-2192.5,0.00016438,2]
[396542879,1765044647180,-500.0,0.00016438,2]
[396542880,1765044647190,-811.41,0.00016438,2]
[396542881,1765044647200,-500.0,0.00016438,2]
[396542882,1765044647210,-546.3,0.00016438,2]
[396542883,1765044647220,-500.0,0.00016438,2]
[396542884,1765044647230,-2681.63,0.00016438,2]
[396542885,1765044647240,-500.0,0.00016438,2]
[396542886,1765044647250,-500.0,0.00016438,2]
[396542887,1765044647260,-500.0,0.00016438,2]
[396542888,1765044647270,-500.0,0.00016438,2]
[396542889,1765044647280,-1510.45,0.00016438,2]
[396542890,1765044647289,-754.09,0.00016438,2]
[396542891,1765044647299,-500.0,0.00016438,2]
[396542892,1765044647309,-500.0,0.00016438,2]
[396542893,1765044647318,-500.0,0.00016438,2]
[396542894,1765044647328,-500.0,0.00016438,2]
[396542895,1765044647338,-500.0,0.00016438,2]
[396542896,1765044647347,-500.0,0.00016438,2]
[396542897,1765044647357,-500.0,0.00016438,2]
[396542898,1765044647367,-151.0,0.00016438,2]
[396542899,1765044647376,-1651.52,0.00016438,2]
[396542900,1765044647386,-500.0,0.00016438,2]
[396542901,1765044647395,-2809.43,0.00016438,2]
[396542902,1765044647405,-500.0,0.00016438,2]
[396542903,1765044647415,-2563.07,0.00016438,2]
[396542904,1765044647425,-871.83,0.00016438,2]
[396542905,1765044647434,-500.0,0.00016438,2]
[396542906,1765044647444,-500.0,0.00016438,2]
[396542907,1765044647457,-500.0,0.00016438,2]
[396542908,1765044647467,-504.09155185,0.00016438,2]
[396542909,1765044647476,-500.0,0.00016438,2]
[396542910,1765044647485,-500.0,0.00016438,2]
[396542911,1765044647495,-255.141935,0.00016438,2]
[396542912,1765044647505,-500.0,0.00016438,2]
[396542913,1765044647515,-500.0,0.00016438,2]
[396542914,1765044647525,-2501.96,0.00016438,2]
[396542915,1765044647536,-707.56,0.00016438,2]
[396542916,1765044647545,-500.0,0.00016438,2]
[396542917,1765044647555,-500.0,0.00016438,2]
[396542918,1765044647564,-500.0,0.00016438,2]
[396542919,1765044647574,-500.0,0.00016438,2]
[396542920,1765044647584,-153.483158,0.00016438,2]
[396542921,1765044647593,-530.34,0.00016438,2]
[396542922,1765044647603,-617.36,0.00016438,2]
[396542923,1765044647613,-500.0,0.00016438,2]
[396542924,1765044647623,-4820.97,0.00016438,2]
[396542925,1765044647633,-501.7503284,0.00016438,2]
[396542926,1765044647643,-500.0,0.00016438,2]
[396542927,1765044647652,-502.03089373,0.00016438,2]
[396542928,1765044647663,-816.7,0.00016438,2]
[396542929,1765044647673,-157.502877,0.00016438,2]
[396542930,1765044647683,-2912.16,0.00016438,2]
[396542931,1765044647693,-1939.75,0.00016438,2]
[396542932,1765044647703,-303.874055,0.00016438,2]
[396542933,1765044647713,-500.0,0.00016438,2]
[396542934,1765044647723,-303.874055,0.00016438,2]
[396542935,1765044647733,-500.0,0.00016438,2]
[396542936,1765044647742,-2138.32,0.00016438,2]
[396542937,1765044647752,-500.0,0.00016438,2]
[396542938,1765044647762,-813.7,0.00016438,2]
[396542939,1765044647771,-151.0,0.00016438,2]
[396542940,1765044647781,-303.874055,0.00016438,2]
[396542941,1765044647792,-3103.78,0.00016438,2]
[396542942,1765044647802,-500.0,0.00016438,2]
[396542943,1765044647812,-303.874055,0.00016438,2]
[396542944,1765044647821,-672.86,0.00016438,2]
[396542945,1765044647831,-500.0,0.00016438,2]
[396542946,1765044647840,-6038.19,0.00016438,2]
[396542947,1765044647850,-151.0,0.00016438,2]
[396542948,1765044647859,-500.0,0.00016438,2]
[396542950,1765044647868,-2704.58,0.00016438,2]
[396542951,1765044647878,-500.0,0.00016438,2]
[396542952,1765044647887,-2819.95,0.00016438,2]
[396542953,1765044647897,-151.0,0.00016438,2]
[396542955,1765044647906,-1060.04,0.00016438,2]
[396542956,1765044647915,-500.0,0.00016438,2]
[396542957,1765044647925,-500.0,0.00016438,2]
[396542958,1765044647935,-151.0,0.00016438,2]
[396542959,1765044647944,-500.0,0.00016438,2]
[396542960,1765044647953,-582.77,0.00016438,2]
[396542961,1765044647963,-151.0,0.00016438,2]
[396542962,1765044647972,-500.0,0.00016438,2]
[396542963,1765044647981,-3028.36,0.00016438,2]
[396542964,1765044647991,-500.0,0.00016438,2]
[396542965,1765044648000,-9696.65,0.00016438,2]
[396542966,1765044648010,-151.0,0.00016438,2]
[396542967,1765044648019,-500.0,0.00016438,2]
[396542968,1765044648028,-1685.3,0.00016438,2]
[396542969,1765044648038,-500.0,0.00016438,2]
[396542970,1765044648047,-735.79,0.00016438,2]
[396542971,1765044648057,-2431.65,0.00016438,2]
[396542972,1765044648066,-195.077165,0.00016438,2]
[396542973,1765044648075,-500.0,0.00016438,2]
[396542974,1765044648084,-638.39,0.00016438,2]
[396542975,1765044648094,-760.71,0.00016438,2]
[396542976,1765044648103,-2260.78,0.00016438,2]
[396542977,1765044648112,-500.0,0.00016438,2]
[396542978,1765044648121,-1080.87,0.00016438,2]
[396542979,1765044648130,-500.0,0.00016438,2]
[396542980,1765044648139,-500.0,0.00016438,2]
[396542981,1765044648148,-151.0,0.00016438,2]
[396542982,1765044648158,-529.86,0.00016438,2]
[396542983,1765044648168,-500.0,0.00016438,2]
[396542984,1765044648177,-632.8,0.00016438,2]
[396542985,1765044648187,-500.0,0.00016438,2]
[396542986,1765044648196,-507.94950619,0.00016438,2]
[396542987,1765044648206,-1479.07,0.00016438,2]
[396542988,1765044648215,-500.0,0.00016438,2]
[396542989,1765044648225,-500.0,0.00016438,2]
[396542990,1765044648234,-500.0,0.00016438,2]
[396542991,1765044648244,-500.0,0.00016438,2]
[396542992,1765044648254,-840.79,0.00016438,2]
[396542993,1765044648264,-2854.52,0.00016438,2]
[396542994,1765044648273,-500.0,0.00016438,2]
[396542995,1765044648284,-500.0,0.00016438,2]
[396542996,1765044648293,-560.16,0.00016438,2]
[396542997,1765044648303,-500.0,0.00016438,2]
[396542998,1765044648312,-502.78449621,0.00016438,2]
[396542999,1765044648322,-500.0,0.00016438,2]
[396543000,1765044648331,-2654.06,0.00016438,2]
[396543001,1765044648341,-500.0,0.00016438,2]
[396543002,1765044648350,-151.0,0.00016438,2]
[396543003,1765044648360,-151.0,0.00016438,2]
[396543004,1765044648369,-500.0,0.00016438,2]
[396543005,1765044648379,-151.0,0.00016438,2]
[396543006,1765044648389,-500.0,0.00016438,2]
[396543007,1765044648398,-500.0,0.00016438,2]
[396543008,1765044648407,-2329.63,0.00016438,2]
[396543009,1765044648417,-500.0,0.00016438,2]
[396543010,1765044648426,-500.0,0.00016438,2]
[396543011,1765044648435,-609.08,0.00016438,2]
[396543012,1765044648445,-500.0,0.00016438,2]
[396543013,1765044648458,-3238.48,0.00016438,2]
[396543014,1765044648467,-500.0,0.00016438,2]
[396543015,1765044648476,-500.0,0.00016438,2]
[396543016,1765044648485,-500.0,0.00016438,2]
[396543017,1765044648495,-515.6,0.00016438,2]
[396543018,1765044648504,-2164.32,0.00016438,2]
[396543019,1765044648514,-294.492084,0.00016438,2]
[396543020,1765044648523,-543.22,0.00016438,2]
[396543021,1765044648534,-500.0,0.00016438,2]
[396543022,1765044648543,-503.28175897,0.00016438,2]
[396543023,1765044648552,-855.06,0.00016438,2]
[396543024,1765044648561,-151.0,0.00016438,2]
[396543025,1765044648571,-1261.52,0.00016438,2]
[396543026,1765044648581,-155.258517,0.00016438,2]
[396543027,1765044648591,-3225.66,0.00016438,2]
[396543028,1765044648600,-500.0,0.00016438,2]
[396543029,1765044648609,-2778.5,0.00016438,2]
[396543030,1765044648618,-634.16,0.00016438,2]
[396543031,1765044648628,-500.0,0.00016438,2]
[396543032,1765044648637,-151.0,0.00016438,2]
[396543033,1765044648647,-151.0,0.00016438,2]
[396543034,1765044648656,-2820.48,0.00016438,2]
[396543035,1765044648665,-151.0,0.00016438,2]
[396543036,1765044648674,-300.627044,0.00016438,2]
[396543037,1765044648684,-504.3241041,0.00016438,2]
[396543038,1765044648694,-151.0,0.00016438,2]
[396543039,1765044648703,-151.0,0.00016438,2]
[396543040,1765044648712,-500.0,0.00016438,2]
[396543041,1765044648721,-2487.54,0.00016438,2]
[396543042,1765044648731,-151.0,0.00016438,2]
[396543043,1765044648740,-151.0,0.00016438,2]
[396543044,1765044648749,-561.78,0.00016438,2]
[396543045,1765044648759,-172.725488,0.00016438,2]
[396543046,1765044648768,-502.51,0.00016438,2]
[396543047,1765044648779,-208.91205399,0.00016438,2]
[396543048,1765044648789,-2963.08,0.00016438,2]
[396543049,1765044648798,-151.0,0.00016438,2]
[396543050,1765044648808,-618.34,0.00016438,2]
[396543051,1765044648818,-186.426515,0.00016438,2]
[396543052,1765044648827,-782.97,0.00016438,2]
[396543053,1765044648837,-634.467288,0.00016438,2]
[396543054,1765044648847,-2382.89,0.00016438,2]
[396543055,1765044648857,-1000.0,0.00016438,2]
[396543056,1765044648866,-634.467288,0.00016438,2]
[396543057,1765044648876,-500.0,0.00016438,2]
[396543058,1765044648885,-550.42777936,0.00016438,2]
[396543059,1765044648894,-500.0,0.00016438,2]
[396543060,1765044648903,-634.467288,0.00016438,2]
[396543061,1765044648912,-634.467288,0.00016438,2]
[396543062,1765044648922,-151.0,0.00016438,2]
[396543063,1765044648931,-151.0,0.00016438,2]
[396543064,1765044648940,-500.0,0.00016438,2]
[396543065,1765044648949,-500.0,0.00016438,2]
[396543066,1765044648959,-634.467288,0.00016438,2]
[396543067,1765044648968,-151.0,0.00016438,2]
[396543068,1765044648977,-500.0,0.00016438,2]
[396543069,1765044648987,-634.467288,0.00016438,2]
[396543070,1765044648996,-151.0,0.00016438,2]
[396543071,1765044649005,-3802.47,0.00016438,2]
[396543072,1765044649015,-10347.11,0.00016438,2]
[396543073,1765044649026,-634.467288,0.00016438,2]
[396543074,1765044649035,-634.467288,0.00016438,2]
[396543075,1765044649044,-1282.48,0.00016438,2]
[396543076,1765044649054,-500.0,0.00016438,2]
[396543077,1765044649064,-2985.73,0.00016438,2]
[396543078,1765044649073,-500.0,0.00016438,2]
[396543079,1765044649083,-500.0,0.00016438,2]
[396543080,1765044649092,-1277.67,0.00016438,2]
[396543081,1765044649102,-508.96,0.00016438,2]
[396543082,1765044649111,-500.0,0.00016438,2]
[396543083,1765044649121,-503.92500125,0.00016438,2]
[396543084,1765044649131,-537.54,0.00016438,2]
[396543085,1765044649140,-554.2290497,0.00016438,2]
[396543086,1765044649150,-153.063546,0.00016438,2]
[396543087,1765044649160,-151.0,0.00016438,2]
[396543088,1765044649169,-701.36,0.00016438,2]
[396543089,1765044649179,-2254.14,0.00016438,2]
[396543090,1765044649188,-151.0,0.00016438,2]
[396543091,1765044649197,-500.0,0.00016438,2]
[396543092,1765044649207,-500.0,0.00016438,2]
[396543093,1765044649216,-500.0,0.00016438,2]
[396543094,1765044649226,-645.36,0.00016438,2]
[396543095,1765044649235,-600.55,0.00016438,2]
[396543096,1765044649245,-206.514604,0.00016438,2]
[396543097,1765044649255,-500.0,0.00016438,2]
[396543098,1765044649264,-2703.88,0.00016438,2]
[396543099,1765044649273,-500.0,0.00016438,2]
[396543100,1765044649282,-2606.62,0.00016438,2]
[396543101,1765044649291,-500.0,0.00016438,2]
[396543102,1765044649301,-2890.26,0.00016438,2]
[396543103,1765044649310,-1962.75,0.00016438,2]
[396543104,1765044649319,-500.0,0.00016438,2]
[396543105,1765044649328,-151.0,0.00016438,2]
[396543106,1765044649337,-500.0,0.00016438,2]
[396543107,1765044649347,-151.0,0.00016438,2]
[396543108,1765044649356,-500.0,0.00016438,2]
[396543109,1765044649365,-2697.87,0.00016438,2]
[396543110,1765044649374,-500.0,0.00016438,2]
[396543111,1765044649383,-151.0,0.00016438,2]
[396543112,1765044649393,-610.58,0.00016438,2]
[396543113,1765044649403,-151.0,0.00016438,2]
[396543114,1765044649412,-2923.32,0.00016438,2]
[396543115,1765044649422,-539.57,0.00016438,2]
[396543116,1765044649431,-2394.64,0.00016438,2]
[396543117,1765044649440,-500.0,0.00016438,2]
[396543118,1765044649449,-502.6129268,0.00016438,2]
[396543119,1765044649463,-500.0,0.00016438,2]
[396543120,1765044649472,-500.0,0.00016438,2]
[396543121,1765044649482,-3000.09,0.00016438,2]
[396543122,1765044649492,-500.0,0.00016438,2]
[396543123,1765044649503,-500.0,0.00016438,2]
[396543124,1765044649512,-500.0,0.00016438,2]
[396543125,1765044649522,-500.0,0.00016438,2]
[396543126,1765044649532,-500.0,0.00016438,2]
[396543127,1765044649542,-500.0,0.00016438,2]
[396543128,1765044649552,-500.0,0.00016438,2]
[396543129,1765044649562,-2901.21,0.00016438,2]
[396543130,1765044649571,-500.0,0.00016438,2]
[396543131,1765044649580,-500.0,0.00016438,2]
[396543132,1765044649589,-500.0,0.00016438,2]
[396543133,1765044649599,-2818.57,0.00016438,2]
[396543134,1765044649608,-500.0,0.00016438,2]
[396543135,1765044649617,-610.97,0.00016438,2]
[396543136,1765044649627,-500.0,0.00016438,2]
[396543137,1765044649638,-151.0,0.00016438,2]
[396543138,1765044649647,-503.76,0.00016438,2]
[396543139,1765044649657,-500.0,0.00016438,2]
[396543140,1765044649666,-2934.49,0.00016438,2]
[396543141,1765044649676,-500.0,0.00016438,2]
[396543142,1765044649686,-500.0,0.00016438,2]
[396543143,1765044649695,-500.0,0.00016438,2]
[396543144,1765044649705,-8229.13,0.00016438,2]
[396543145,1765044649715,-789.15,0.00016438,2]
[396543146,1765044649724,-975.56,0.00016438,2]
[396543147,1765044649733,-2998.67,0.00016438,2]
[396543148,1765044649746,-500.0,0.00016438,2]
[396543149,1765044649756,-533.69,0.00016438,2]
[396543150,1765044649766,-500.0,0.00016438,2]
[396543151,1765044649776,-1231.47,0.00016438,2]
[396543152,1765044649786,-2882.59,0.00016438,2]
[396543153,1765044649796,-246.496657,0.00016438,2]
[396543154,1765044649806,-246.496657,0.00016438,2]
[396543155,1765044649816,-2274.42,0.00016438,2]
[396543156,1765044649825,-246.496657,0.00016438,2]
[396543157,1765044649835,-246.496657,0.00016438,2]
[396543158,1765044649844,-1728.32,0.00016438,2]
[396543159,1765044649854,-246.496657,0.00016438,2]
[396543160,1765044649863,-246.496657,0.00016438,2]
[396543161,1765044649873,-500.0,0.00016438,2]
[396543162,1765044649883,-500.0,0.00016438,2]
[396543163,1765044649892,-152.047184,0.00016438,2]
[396543164,1765044649902,-246.496657,0.00016438,2]
[396543165,1765044650119,-1440.21,0.00016438,2]
[396543166,1765044650129,-151.0,0.00016438,2]
[396543167,1765044650139,-246.496657,0.00016438,2]
[396543168,1765044650148,-151.0,0.00016438,2]
[396543169,1765044650158,-748.43,0.00016438,2]
[396543170,1765044650168,-755.95,0.00016438,2]
[396543171,1765044650177,-151.0,0.00016438,2]
[396543172,1765044650188,-2713.58,0.00016438,2]
[396543173,1765044650197,-151.0,0.00016438,2]
[396543174,1765044650206,-777.337074,0.00016438,2]
[396543175,1765044650216,-777.337074,0.00016438,2]
[396543176,1765044650225,-500.0,0.00016438,2]
[396543177,1765044650234,-777.337074,0.00016438,2]
[396543178,1765044650243,-500.0,0.00016438,2]
[396543179,1765044650253,-777.337074,0.00016438,2]
[396543180,1765044650265,-540.07351419,0.00016438,2]
[396543181,1765044650279,-10348.9,0.00016438,2]
[396543182,1765044650289,-777.337074,0.00016438,2]
[396543183,1765044650299,-777.68,0.00016438,2]
[396543184,1765044650309,-777.337074,0.00016438,2]
[396543185,1765044650320,-591.11,0.00016438,2]
[396543186,1765044650329,-777.337074,0.00016438,2]
[396543187,1765044650340,-500.0,0.00016438,2]
[396543188,1765044650350,-777.337074,0.00016438,2]
[396543189,1765044650359,-653.94,0.00016438,2]
[396543190,1765044650371,-500.0,0.00016438,2]
[396543191,1765044650383,-500.0,0.00016438,2]
[396543192,1765044650393,-2547.22,0.00016438,2]
[396543193,1765044650402,-3319.82,0.00016438,2]
[396543194,1765044650413,-500.0,0.00016438,2]
[396543195,1765044650423,-846.737984,0.00016438,2]
[396543196,1765044650433,-846.737984,0.00016438,2]
[396543197,1765044650443,-500.0,0.00016438,2]
[396543198,1765044650454,-500.0,0.00016438,2]
[396543199,1765044650471,-846.737984,0.00016438,2]
[396543200,1765044650480,-846.737984,0.00016438,2]
[396543201,1765044650491,-151.0,0.00016438,2]
[396543202,1765044650502,-846.737984,0.00016438,2]
[396543203,1765044650511,-151.0,0.00016438,2]
[396543204,1765044650521,-500.0,0.00016438,2]
[396543205,1765044650533,-846.737984,0.00016438,2]
[396543206,1765044650543,-151.0,0.00016438,2]
[396543207,1765044650553,-151.0,0.00016438,2]
[396543208,1765044650562,-500.0,0.00016438,2]
[396543209,1765044650571,-846.737984,0.00016438,2]
[396543210,1765044650582,-846.737984,0.00016438,2]
[396543211,1765044650591,-500.0,0.00016438,2]
[396543212,1765044650600,-785.11,0.00016438,2]
[396543213,1765044650610,-151.0,0.00016438,2]
[396543214,1765044650619,-151.0,0.00016438,2]
[396543215,1765044650629,-151.0,0.00016438,2]
[396543216,1765044650638,-796.48,0.00016438,2]
[396543217,1765044650647,-3180.34,0.00016438,2]
[396543218,1765044650658,-500.0,0.00016438,2]
[396543219,1765044650667,-4064.82,0.00016438,2]
[396543220,1765044650676,-500.0,0.00016438,2]
[396543221,1765044650685,-500.0,0.00016438,2]
[396543222,1765044650695,-2315.49,0.00016438,2]
[396543223,1765044650704,-502.05482194,0.00016438,2]
[396543224,1765044650713,-151.0,0.00016438,2]
[396543225,1765044650724,-573.58,0.00016438,2]
[396543226,1765044650733,-151.0,0.00016438,2]
[396543227,1765044650743,-500.0,0.00016438,2]
[396543228,1765044650753,-743.77,0.00016438,2]
[396543229,1765044650762,-501.66499867,0.00016438,2]
[396543230,1765044650772,-150.0,0.00016438,2]
[396543231,1765044650781,-151.0,0.00016438,2]
[396543232,1765044650791,-151.0,0.00016438,2]
[396543233,1765044650800,-2934.07,0.00016438,2]
[396543234,1765044650809,-151.0,0.00016438,2]
[396543235,1765044650819,-151.0,0.00016438,2]
[396543236,1765044650828,-549.13,0.00016438,2]
[396543237,1765044650838,-288.086986,0.00016438,2]
[396543238,1765044650847,-2021.69,0.00016438,2]
[396543239,1765044650857,-631.06,0.00016438,2]
[396543240,1765044650866,-1580.34,0.00016438,2]
[396543241,1765044650875,-152.788984,0.00016438,2]
[396543242,1765044650885,-500.0,0.00016438,2]
[396543243,1765044650894,-500.0,0.00016438,2]
[396543244,1765044650903,-500.0,0.00016438,2]
[396543245,1765044650913,-2709.32,0.00016438,2]
[396543246,1765044650922,-500.0,0.00016438,2]
[396543247,1765044650933,-151.0,0.00016438,2]
[396543248,1765044650945,-500.0,0.00016438,2]
[396543249,1765044650955,-151.0,0.00016438,2]
[396543250,1765044650965,-500.0,0.00016438,2]
[396543251,1765044650977,-151.0,0.00016438,2]
[396543252,1765044650987,-154.925311,0.00016438,2]
[396543253,1765044650996,-150.0,0.00016438,2]
[396543254,1765044651007,-500.0,0.00016438,2]
[396543255,1765044651026,-150.0,0.00016438,2]
[396543256,1765044651037,-500.0,0.00016438,2]
[396543257,1765044651046,-555.62,0.00016438,2]
[396543258,1765044651056,-500.0,0.00016438,2]
[396543259,1765044651066,-500.0,0.00016438,2]
[396543260,1765044651076,-500.0,0.00016438,2]
[396543261,1765044651085,-500.0,0.00016438,2]
[396543262,1765044651095,-1477.42,0.00016438,2]
[396543263,1765044651104,-500.0,0.00016438,2]
[396543264,1765044651116,-500.0,0.00016438,2]
[396543265,1765044651127,-3102.62,0.00016438,2]
[396543266,1765044651137,-537.05423373,0.00016438,2]
[396543267,1765044651147,-500.0,0.00016438,2]
[396543268,1765044651158,-500.0,0.00016438,2]
[396543269,1765044651169,-577.55,0.00016438,2]
[396543270,1765044651180,-1850.32,0.00016438,2]
[396543271,1765044651190,-1850.32,0.00016438,2]
[396543272,1765044651201,-2795.09,0.00016438,2]
[396543273,1765044651212,-1850.32,0.00016438,2]
[396543274,1765044651222,-500.0,0.00016438,2]
[396543275,1765044651234,-500.0,0.00016438,2]
[396543276,1765044651244,-500.0,0.00016438,2]
[396543277,1765044651255,-897.39,0.00016438,2]
[396543278,1765044651267,-151.0,0.00016438,2]
[396543279,1765044651278,-500.0,0.00016438,2]
[396543280,1765044651289,-708.65,0.00016438,2]
[396543281,1765044651299,-152.811684,0.00016438,2]
[396543282,1765044651309,-500.0,0.00016438,2]
[396543283,1765044651319,-151.0,0.00016438,2]
[396543284,1765044651329,-2552.91,0.00016438,2]
[396543285,1765044651340,-626.74,0.00016438,2]
[396543286,1765044651350,-739.23,0.00016438,2]
[396543287,1765044651360,-151.0,0.00016438,2]
[396543288,1765044651370,-191.239562,0.00016438,2]
[396543289,1765044651379,-151.0,0.00016438,2]
[396543290,1765044651388,-151.0,0.00016438,2]
[396543291,1765044651399,-524.72,0.00016438,2]
[396543292,1765044651409,-500.0,0.00016438,2]
[396543293,1765044651419,-1240.55,0.00016438,2]
[396543294,1765044651431,-151.0,0.00016438,2]
[396543295,1765044651442,-500.0,0.00016438,2]
[396543296,1765044651455,-151.0,0.00016438,2]
[396543297,1765044651467,-500.0,0.00016438,2]
[396543298,1765044651477,-500.0,0.00016438,2]
[396543299,1765044651486,-500.0,0.00016438,2]
[396543300,1765044651496,-1053.76,0.00016438,2]
[396543301,1765044651505,-500.0,0.00016438,2]
[396543302,1765044651515,-500.0,0.00016438,2]
[396543303,1765044651525,-500.0,0.00016438,2]
[396543304,1765044651537,-500.0,0.00016438,2]
[396543305,1765044651547,-3168.28,0.00016438,2]
[396543306,1765044651560,-502.28,0.00016438,2]
[396543307,1765044651571,-500.0,0.00016438,2]
[396543308,1765044651583,-151.0,0.00016438,2]
[396543309,1765044651594,-151.0,0.00016438,2]
[396543310,1765044651604,-500.0,0.00016438,2]
[396543311,1765044651616,-962.99,0.00016438,2]
[396543312,1765044651626,-500.0,0.00016438,2]
[396543313,1765044651636,-500.0,0.00016438,2]
[396543314,1765044651646,-4416.74,0.00016438,2]
[396543315,1765044651656,-2820.43,0.00016438,2]
[396543316,1765044651666,-500.0,0.00016438,2]
[396543317,1765044651676,-1204.35,0.00016438,2]
[396543318,1765044651686,-1635.42,0.00016438,2]
[396543319,1765044651696,-151.0,0.00016438,2]
[396543320,1765044651706,-151.0,0.00016438,2]
[396543321,1765044651716,-302.41941747,0.00016438,2]
[396543322,1765044651726,-151.0,0.00016438,2]
[396543323,1765044651737,-151.0,0.00016438,2]
[396543324,1765044651748,-500.0,0.00016438,2]
[396543325,1765044651758,-649.84,0.00016438,2]
[396543326,1765044651768,-504.41567911,0.00016438,2]
[396543327,1765044651779,-2602.71,0.00016438,2]
[396543328,1765044651789,-151.0,0.00016438,2]
[396543329,1765044651798,-151.0,0.00016438,2]
[396543330,1765044651808,-500.0,0.00016438,2]
[396543331,1765044651818,-151.0,0.00016438,2]
[396543332,1765044651828,-500.0,0.00016438,2]
[396543333,1765044651839,-160.288808,0.00016438,2]
[396543334,1765044651852,-500.0,0.00016438,2]
[396543335,1765044651863,-501.01499024,0.00016438,2]
[396543336,1765044651874,-500.0,0.00016438,2]
[396543337,1765044651884,-867.01,0.00016438,2]
[396543338,1765044651894,-500.0,0.00016438,2]
[396543339,1765044651904,-151.0,0.00016438,2]
[396543340,1765044651914,-500.0,0.00016438,2]
[396543341,1765044651923,-237.50164851,0.00016438,2]
[396543342,1765044651937,-1201.62,0.00016438,2]
[396543343,1765044651947,-151.0,0.00016438,2]